fUSD/lending_fUSD_20240108
["ID","MTS","AMOUNT","RATE_DAILY","PERIOD"]
[310723663,1704675039810,-5942.44324378,0.000294,2]
[310723664,1704675039819,-5942.44324363,0.000294,2]
[310723665,1704675039828,-5942.44324363,0.000294,2]
[310723666,1704675039837,-5942.44324363,0.000294,2]
[310723667,1704675039846,-5942.44324363,0.000294,2]
[310723668,1704675039856,-5942.44324363,0.000294,2]
[310723669,1704675039865,-5942.44324363,0.000294,2]
[310723670,1704675039874,-5942.44324363,0.000294,2]
[310723671,1704675039885,-200.0,0.000294,3]
[310723672,1704675039895,-800.0,0.000294,5]
[310723673,1704675039903,-200.0,0.00029448,2]
[310723674,1704675039912,-800.0,0.00029468,5]
[310723675,1704675039921,-200.0,0.00029494,2]
[310723676,1704675039930,-500.0,0.00029498,2]
[310723677,1704675039939,-961.71306987,0.000295,6]
[310723678,1704675039948,-187.41591316,0.000295,3]
[310723679,1704675039957,-10913.70858892,0.000295,2]
[310723680,1704675039966,-200.0,0.00029536,3]
[310723681,1704675039975,-800.0,0.00029536,5]
[310723682,1704675039984,-200.0,0.00029541,2]
[310723683,1704675039993,-182.22,0.00029605,2]
[310723684,1704675040001,-448.03326178,0.0002961,4]
[310723685,1704675040011,-728.0,0.00029617,2]
[310723686,1704675040020,-155.68,0.00029626,2]
[310723687,1704675040029,-2000.0,0.00029676,2]
[310723688,1704675040039,-200.0,0.00029676,2]
[310723689,1704675040048,-200.0,0.00029676,2]
[310723690,1704675040057,-229.783824,0.00029678,7]
[310723691,1704675040067,-326.76972748,0.00029699,15]
[310723692,1704675040076,-1964.456485,0.000297,2]
[310723693,1704675040086,-165.087017,0.000297,2]
[310723694,1704675040095,-3000.0,0.000297,2]
[310723695,1704675040104,-300.0,0.000297,2]
[310723696,1704675040114,-304.715023,0.000297,2]
[310723697,1704675040123,-819.0117266,0.000297,2]
[310723698,1704675040133,-836.0,0.000297,2]
[310723699,1704675040142,-154567.43692876,0.00029769,2]
[310723700,1704675040157,-531.3020004,0.00029769,2]
[310723703,1704675040168,-264.25258577,0.00029769,2]
[310723707,1704675040180,-441.64294372,0.00029769,2]
[310723709,1704675040191,-3699.98292778,0.00029769,2]
[310723713,1704675040303,-1113.775,0.00029769,2]
[310723714,1704675040327,-1827.85,0.00029769,2]
[310723715,1704675041288,-2201.51701586,0.000294,2]
[310723742,1704675041577,-3740.92622777,0.000294,2]
[310723744,1704675041586,-265.00581367,0.00029769,2]
[310723746,1704675041595,-4148.2344086,0.00029769,2]
[310723748,1704675041605,-242.4071,0.00029769,7]
[310723750,1704675041615,-242.4071,0.00029769,7]
[310723752,1704675041625,-703.15256935,0.00029773,2]
[310723754,1704675041636,-906.87769315,0.00029773,2]
[310723756,1704675041645,-4589.96542167,0.00029774,2]
[310723758,1704675041655,-537.06141587,0.00029774,2]
[310723761,1704675041665,-181.67623576,0.00029774,2]
[310723763,1704675041674,-246.04492087,0.00029774,2]
[310723764,1704675041684,-220.52015853,0.00029774,2]
[310723766,1704675041693,-3679.60479324,0.00029774,2]
[310723769,1704675041702,-300.02,0.00029774,2]
[310723770,1704675041711,-1808.77532136,0.00029774,2]
[310723772,1704675041721,-382.91152726,0.00029776,2]
[310723774,1704675041730,-180.1765583,0.00029777,2]
[310723775,1704675041739,-559.84340162,0.00029777,2]
[310723776,1704675041748,-155.0,0.00029777,2]
[310723777,1704675041758,-156.8552177,0.00029777,2]
[310723778,1704675041767,-155.0,0.00029777,2]
[310723779,1704675041775,-1074.86246861,0.00029777,2]
[310723780,1704675041785,-540.53733364,0.00029777,2]
[310723781,1704675041794,-161.21857687,0.00029777,2]
[310723782,1704675041803,-155.0,0.00029777,2]
[310723783,1704675041812,-1037.0817784,0.00029777,2]
[310723784,1704675041821,-292.42178579,0.00029778,2]
[310723785,1704675041835,-251.99880636,0.00029778,2]
[310723786,1704675041844,-155.35152198,0.00029778,2]
[310723787,1704675041854,-2259.14305033,0.00029778,2]
[310723788,1704675041863,-155.0,0.00029778,2]
[310723789,1704675041872,-338.41530246,0.00029778,2]
[310723790,1704675041882,-229.72981498,0.00029778,2]
[310723791,1704675041892,-332.04627001,0.00029778,15]
[310723792,1704675041901,-327.81139673,0.00029779,2]
[310723793,1704675041910,-190.74513272,0.00029779,2]
[310723794,1704675041920,-345.36347741,0.00029779,2]
[310723795,1704675041929,-5000.0,0.0002978,5]
[310723796,1704675041938,-6416.2956461,0.0002978,2]
[310723797,1704675041948,-500.0,0.0002979,2]
[310723798,1704675041957,-285.99140142,0.0002979,2]
[310723799,1704675041967,-19841.77145604,0.000298,2]
[310723800,1704675041976,-77539.03354766,0.000298,2]
[310723801,1704675041988,-722.38473074,0.000298,2]
[310723802,1704675042004,-4956.7444118,0.000298,2]
[310723803,1704675042023,-267.46372326,0.000298,2]
[310723804,1704675042035,-24920.14778445,0.000298,2]
[310723805,1704675042046,-713.6500075,0.000298,2]
[310723806,1704675042057,-843.56738472,0.000298,2]
[310723807,1704675042068,-5785.18994562,0.000298,2]
[310723808,1704675042080,-372.03993255,0.000298,2]
[310723809,1704675042091,-699.9999995,0.000298,2]
[310723810,1704675042106,-6809.0625918,0.000298,2]
[310723811,1704675042118,-15756.34920744,0.000298,2]
[310723812,1704675042133,-1354.78230076,0.000298,2]
[310723813,1704675042143,-194.94906334,0.000298,2]
[310723814,1704675042152,-242.4071,0.000298,7]
[310723815,1704675042162,-242.4071,0.000298,7]
[310723816,1704675042170,-171.85,0.00029843,2]
[310723817,1704675042180,-155.68,0.00029883,2]
[310723818,1704675042189,-175.9,0.00029896,2]
[310723819,1704675042198,-150.36366081,0.000299,2]
[310723820,1704675042207,-5971.79733704,0.000299,2]
[310723821,1704675042217,-211.0,0.00029957,2]
[310723822,1704675042226,-211.0,0.00029957,2]
[310723823,1704675042235,-18291.55680378,0.00029958,2]
[310723846,1704675042966,-335.06,0.00029778,2]
[310723847,1704675042976,-3130.58573614,0.00029958,2]
[310723848,1704675042987,-1210.36080118,0.00029958,2]
[310723849,1704675043011,-702.38304042,0.00029958,2]
[310723850,1704675043023,-3242.95702194,0.00029958,2]
[310723851,1704675043034,-106532.76729834,0.00029958,2]
[310723852,1704675043044,-3398.7409322,0.00029958,2]
[310723853,1704675043053,-242.4071,0.00029958,7]
[310723854,1704675043062,-242.4071,0.00029958,7]
[310723855,1704675043071,-5257.0140685,0.00029979,2]
[310723856,1704675043081,-285.99140142,0.0002999,2]
[310723857,1704675043090,-150.0,0.00029999,2]
[310723858,1704675043099,-150.0,0.00029999,2]
[310723859,1704675043108,-18436.00020213,0.00029999,2]
[310723860,1704675043120,-3927.2800272,0.00029999,2]
[310723861,1704675043131,-2978.27850009,0.00029999,2]
[310723862,1704675043144,-2091.84538345,0.00029999,2]
[310723863,1704675043155,-291.23162982,0.00029999,2]
[310723864,1704675043166,-432.0,0.00029999,2]
[310723865,1704675043182,-935.399985,0.00029999,2]
[310723866,1704675043193,-1548.15,0.00029999,2]
[310723867,1704675043204,-2296.08,0.00029999,2]
[310723868,1704675043219,-2130.80201581,0.00029999,2]
[310723869,1704675043231,-3278.315226,0.00029999,2]
[310723870,1704675043243,-137804.45826049,0.00029999,2]
[310723871,1704675043254,-1111.45655832,0.00029999,2]
[310723872,1704675043265,-1052.13396872,0.00029999,2]
[310723873,1704675043277,-459.27060406,0.00029999,2]
[310723874,1704675043304,-899.69,0.00029999,2]
[310723875,1704675043315,-296.39316772,0.00029999,2]
[310723876,1704675043331,-476.0,0.00029773,5]
[310723877,1704675043340,-669.49133339,0.00029999,2]
[310723944,1704675045745,-213.34197708,0.00029398,2]
[310723947,1704675045755,-112.53202994,0.00029398,2]
[310723949,1704675045768,-188.28128236,0.00029398,2]
[310723951,1704675045778,-499.43699742,0.00029398,2]
[310723953,1704675045788,-341.95932199,0.00029399,2]
[310723955,1704675045797,-196.49333365,0.00029399,2]
[310723957,1704675045807,-288.06894495,0.00029399,2]
[310723959,1704675045816,-5386.16207299,0.000294,2]
[310723963,1704675045848,-431.52821178,0.000294,2]
[310723970,1704675045902,-308.58650374,0.00029398,2]
[310723972,1704675045912,-124.75295886,0.000294,2]
[310723974,1704675045921,-904.38766068,0.00029774,2]
[310723976,1704675045931,-499.99,0.00029778,2]
[310723978,1704675045941,-759.42,0.00029778,2]
[310723980,1704675045950,-945.74046914,0.00029999,2]
[310723984,1704675045998,-500.62895699,0.00029999,2]
[310723985,1704675046010,-543.0,0.00029999,2]
[310723986,1704675046084,-154.95842206,0.0002699,2]
[310723987,1704675046094,-159.45067557,0.00029999,2]
[310723988,1704675046105,-6560.993,0.00029999,2]
[310723991,1704675115626,160.0,0.00028804,120]
[310723992,1704675539869,167.74,0.00022003,2]
[310723993,1704675619212,520.46663064,0.00022003,2]
[310723994,1704675633282,356.04016405,0.00022003,2]
[310724002,1704675779188,195.84922932,0.00021981,2]
[310724033,1704676231909,-599.75120427,0.00022798,2]
[310724034,1704676231919,-156.0064561,0.00023012,2]
[310724035,1704676231929,-2269.62965622,0.00023098,2]
[310724036,1704676231942,-1934.24120179,0.00023098,2]
[310724037,1704676231954,-385.33323618,0.00023098,2]
[310724038,1704676234795,-555.79337352,0.00023098,2]
[310724039,1704676234819,-176.43547256,0.00023098,2]
[310724040,1704676234828,-117.37865298,0.00023099,2]
[310724041,1704676234840,-3733.47066844,0.00023099,2]
[310724042,1704676234849,-999.4475,0.0002313,2]
[310724043,1704676234858,-1964.96186578,0.000237,2]
[310724044,1704676234869,-207.0,0.00024732,2]
[310724045,1704676234878,-350.0,0.00025,3]
[310724046,1704676234887,-150.0,0.000251,2]
[310724047,1704676234896,-156.0064561,0.00025308,2]
[310724048,1704676234905,-520.48321937,0.000264,2]
[310724049,1704676234914,-175.9,0.000264,2]
[310724050,1704676234924,-280.69557039,0.00026948,2]
[310724051,1704676234933,-299.9317514,0.00027,3]
[310724052,1704676234945,-100.0682486,0.00027,3]
[310724053,1704676234954,-500.0,0.000273,2]
[310724054,1704676234963,-2041.0,0.000273,2]
[310724055,1704676234974,-500.0,0.00027335,2]
[310724056,1704676234983,-1891.31,0.00027335,2]
[310724057,1704676234992,-181.11,0.00027357,2]
[310724058,1704676235001,-23654.0,0.000274,2]
[310724059,1704676235011,-318.87,0.000274,2]
[310724060,1704676235020,-156.0064561,0.00027604,2]
[310724061,1704676235029,-6215.44584673,0.00027654,2]
[310724062,1704676235038,-250.0,0.00027662,2]
[310724063,1704676235048,-5604.88,0.00027664,2]
[310724064,1704676235058,-250.0,0.00027666,2]
[310724065,1704676235068,-432.02,0.00027679,2]
[310724067,1704676235079,-563.2,0.00027716,2]
[310724068,1704676235089,-157.43,0.00027751,2]
[310724069,1704676235099,-178.45040538,0.00027769,2]
[310724070,1704676235127,-149.84959462,0.00027769,2]
[310724071,1704676235137,-157.0,0.00027787,2]
[310724072,1704676235148,-1443.33717112,0.00027788,2]
[310724073,1704676235160,-1056.66282888,0.00027788,2]
[310724074,1704676235171,-118.53221814,0.00027854,2]
[310724075,1704676235183,-318.26778186,0.00027854,2]
[310724076,1704676235194,-160.48,0.00027866,2]
[310724077,1704676235214,-150.0,0.00027928,2]
[310724078,1704676235228,-5223.94,0.00027958,2]
[310724079,1704676235238,-157.0,0.00028343,2]
[310724080,1704676235248,-211.54694715,0.00028498,2]
[310724081,1704676235259,-1721.23392084,0.00028617,7]
[310724082,1704676235269,-210.37303477,0.00028639,6]
[310724083,1704676235279,-520.67326105,0.00028639,7]
[310724084,1704676235288,-207.0,0.0002865,8]
[310724085,1704676235298,-172.36407633,0.00028662,6]
[310724086,1704676235308,-328.3,0.00028748,2]
[310724087,1704676235318,-200.0,0.00028804,2]
[310724088,1704676235327,-163.63,0.00028849,2]
[310724089,1704676235337,-157.0,0.00028898,2]
[310724090,1704676235347,-163.72,0.00028985,2]
[310724091,1704676235356,-450.0,0.00029,3]
[310724092,1704676235366,-555.40078,0.00029048,2]
[310724093,1704676235379,-734.92,0.00029139,2]
[310724094,1704676235389,-555.40078,0.00029148,2]
[310724095,1704676235399,-1000.40108,0.00029148,2]
[310724096,1704676235410,-150.0,0.00029213,2]
[310724097,1704676235420,-555.40078,0.00029248,2]
[310724098,1704676235430,-778.61062,0.00029248,2]
[310724099,1704676235440,-160.48,0.00029318,2]
[310724100,1704676235451,-1000.40108,0.00029348,2]
[310724101,1704676235461,-526.82413509,0.00029396,2]
[310724102,1704676235471,-654.36624791,0.00029397,2]
[310724103,1704676235481,-763.87383966,0.00029398,2]
[310724104,1704676235492,-555.40078,0.00029448,2]
[310724105,1704676235502,-157.0,0.00029454,2]
[310724106,1704676235512,-240.4268503,0.00029479,2]
[310724107,1704676235522,-2429.39,0.0002948,2]
[310724108,1704676235532,-60941.68943032,0.0002948,2]
[310724109,1704676235546,-650.41397724,0.0002948,2]
[310724110,1704676235558,-492.21325743,0.0002948,2]
[310724111,1704676235582,-6178.03993709,0.0002948,2]
[310724112,1704676235602,-627.62684945,0.0002948,2]
[310724125,1704676237863,-3407.83363677,0.0002948,2]
[310724126,1704676237924,-4929.07611718,0.0002948,2]
[310724127,1704676237984,-280.78750419,0.0002948,2]
[310724128,1704676238162,-332.37388,0.0002948,2]
[310724129,1704676238223,-450.156,0.0002948,2]
[310724130,1704676238235,-475.12296537,0.0002948,2]
[310724131,1704676238246,-2918.78082554,0.0002948,2]
[310724132,1704676238336,-566.95888172,0.0002948,2]
[310724133,1704676238353,-391.34033141,0.0002948,2]
[310724165,1704676240596,-991.77166717,0.0002948,2]
[310724166,1704676241346,-3509.038,0.0002948,2]
[310724167,1704676241358,-2074.25287391,0.0002948,2]
[310724174,1704676243440,-359.87,0.00026935,2]
[310724175,1704676243449,-359.87,0.00029199,2]
[310724176,1704676243471,-19.6998862,0.0002948,6]
[310724177,1704676243688,-141.318596,0.0002948,6]
[310724178,1704676243697,-183.10755903,0.0002948,2]
[310724216,1704676246018,-3847.59113112,0.00029479,2]
[310724217,1704676246027,-285583.37045725,0.0002948,2]
[310724218,1704676246040,-3609.19642269,0.0002948,2]
[310724219,1704676246051,-625.15762086,0.0002948,2]
[310724220,1704676246062,-1312.34,0.0002948,2]
[310724221,1704676246139,-265.88603537,0.0002948,2]
[310724222,1704676246150,-865.07617275,0.0002948,2]
[310724223,1704676246172,-2397.35460174,0.0002948,2]
[310724224,1704676248017,-11247.03019552,0.0002948,2]
[310724225,1704676248026,-187.41591316,0.000295,3]
[310724226,1704676248035,-800.0,0.00029537,5]
[310724227,1704676248045,-500.0,0.00029571,2]
[310724228,1704676248054,-2980.58280507,0.0002958,2]
[310724235,1704676412414,600.0,0.00028,30]
[310724236,1704676630822,2308.0,0.0003,120]
[310724237,1704676850076,500.0,0.0003,120]
[310724238,1704676860083,309.0,0.0003,120]
[310724239,1704676882174,2678.88,0.000301,90]
[310724240,1704676910504,500.0,0.000301,120]
[310724241,1704676965396,500.0,0.000301,90]
[310724242,1704677044200,207.0,0.00021732,2]
[310724293,1704677432044,-5322.5786516,0.00022593,2]
[310724295,1704677432055,-866.03806109,0.00022594,2]
[310724296,1704677432073,-523.9887444,0.00022595,2]
[310724297,1704677432083,-4468.38482344,0.00022595,2]
[310724299,1704677432105,-327.40160416,0.00022595,2]
[310724300,1704677432118,-294.01342528,0.00022595,2]
[310724301,1704677432127,-212.07340422,0.00022595,2]
[310724302,1704677432136,-493.7874305,0.00022598,2]
[310724303,1704677432147,-301.52504693,0.00022598,2]
[310724304,1704677432159,-423.02581169,0.00022598,2]
[310724305,1704677432171,-63.46198095,0.00022598,2]
[310724306,1704677432180,-160.69341688,0.00022599,2]
[310724307,1704677432190,-150.0,0.00022694,2]
[310724308,1704677432199,-160.69341688,0.00025433,2]
[310724309,1704677432209,-210.0,0.00025515,2]
[310724310,1704677432219,-198.26,0.000257,2]
[310724311,1704677432228,-150.99,0.000257,2]
[310724312,1704677432238,-278.39,0.000257,2]
[310724313,1704677432247,-375.7,0.0002583,2]
[310724314,1704677432257,-500.0,0.00025863,2]
[310724315,1704677432266,-386.1,0.00026515,2]
[310724316,1704677432275,-4125.82,0.00027105,2]
[310724317,1704677432284,-723.79,0.00027105,2]
[310724318,1704677432294,-500.0,0.00027285,2]
[310724319,1704677432303,-250.0,0.000274,2]
[310724320,1704677432312,-2000.0,0.00027709,2]
[310724321,1704677432321,-441.74,0.0002778,2]
[310724322,1704677432331,-250.0,0.0002781,2]
[310724323,1704677432340,-150.0,0.00027814,2]
[310724324,1704677432349,-150.0,0.00027815,2]
[310724325,1704677432359,-549.44,0.00027815,2]
[310724326,1704677432368,-250.0,0.00027817,2]
[310724327,1704677432379,-363.3,0.00027825,2]
[310724328,1704677432388,-200.0,0.00027848,2]
[310724329,1704677432398,-186.22,0.00027848,2]
[310724330,1704677432407,-684.1,0.00027854,2]
[310724331,1704677432417,-2380.94,0.0002787,2]
[310724332,1704677432426,-250.0,0.00027914,2]
[310724333,1704677432435,-225.89987801,0.00027919,2]
[310724334,1704677432471,-2274.10012199,0.00027919,2]
[310724335,1704677432480,-1000.0,0.00027925,2]
[310724336,1704677432489,-450.56,0.00027956,2]
[310724337,1704677432498,-4353.28,0.00028018,2]
[310724338,1704677432509,-1182.92,0.00028032,2]
[310724339,1704677432521,-152.14,0.00028076,2]
[310724340,1704677432531,-375.7,0.00028094,2]
[310724341,1704677432540,-163.72,0.00028116,2]
[310724342,1704677432551,-165.41,0.00028264,2]
[310724343,1704677432560,-160.69341688,0.00028266,2]
[310724344,1704677432569,-709.77,0.0002839,2]
[310724345,1704677432579,-178.73077795,0.00028581,7]
[310724346,1704677432588,-358.294395,0.00028606,2]
[310724347,1704677432600,-935.31158802,0.00028606,2]
[310724348,1704677432615,-578.02673076,0.00028606,2]
[310724349,1704677432637,-1309.0355781,0.00028606,2]
[310724350,1704677432646,-163.73,0.00028646,2]
[310724351,1704677432655,-165.41,0.00028668,2]
[310724352,1704677432664,-569.01783753,0.00028676,2]
[310724353,1704677432674,-150.86021591,0.00028677,6]
[310724354,1704677432683,-2288.68515552,0.00028677,7]
[310724355,1704677432694,-258.77683553,0.00028677,7]
[310724356,1704677432704,-185.55617324,0.00028677,7]
[310724357,1704677432715,-2355.64058952,0.00028677,7]
[310724358,1704677433452,-265.22,0.00027921,2]
[310724359,1704677433461,-191.5955046,0.00028677,7]
[310724360,1704677433471,-157.9972996,0.00028677,7]
[310724361,1704677433481,-171.46661138,0.00028677,7]
[310724362,1704677433491,-500.0,0.00028707,7]
[310724363,1704677433500,-35.74616691,0.00028804,2]
[310724364,1704677433513,-327.55383309,0.00028804,2]
[310724365,1704677433522,-259.614,0.00028813,2]
[310724366,1704677433532,-1147.58180374,0.00028988,2]
[310724367,1704677433542,-600.0,0.00029,30]
[310724368,1704677433551,-165.41,0.00029072,2]
[310724369,1704677433561,-150.0,0.00029152,2]
[310724370,1704677433570,-351.32305882,0.00029184,2]
[310724371,1704677433580,-1000.20318,0.00029248,2]
[310724372,1704677433590,-1153.9682,0.0002928,2]
[310724373,1704677433600,-800.0,0.00029343,5]
[310724374,1704677433609,-9525.64097975,0.0002937,2]
[310724375,1704677433619,-307.17642573,0.00029402,21]
[310724376,1704677433630,-165.41,0.00029476,2]
[310724377,1704677433639,-1614.25835872,0.00029479,2]
[310724378,1704677433649,-500.83364454,0.00029479,2]
[310724379,1704677433659,-24433.7934,0.0002948,2]
[310724380,1704677433669,-714.46,0.0002948,2]
[310724381,1704677433679,-1085.26413879,0.00029498,2]
[310724382,1704677433690,-1096.74877927,0.00029498,2]
[310724383,1704677433699,-152.14,0.00029539,2]
[310724384,1704677433709,-500.0,0.00029546,2]
[310724385,1704677433719,-200.0,0.00029551,3]
[310724386,1704677433729,-800.0,0.00029551,5]
[310724387,1704677433739,-167.61819392,0.0002958,2]
[310724388,1704677433750,-1212.655,0.00029598,2]
[310724389,1704677433759,-503.7639,0.00029598,2]
[310724390,1704677433769,-358.4888,0.00029598,2]
[310724391,1704677433779,-1000.0,0.000296,2]
[310724392,1704677433789,-0.18975515,0.00029605,10]
[310724393,1704677433801,-551.95024485,0.00029605,10]
[310724394,1704677433811,-118.23217191,0.00029615,2]
[310724395,1704677433823,-853.71847551,0.00029615,2]
[310724396,1704677433835,-852.59213198,0.00029615,2]
[310724397,1704677433847,-675.4572206,0.00029615,2]
[310724398,1704677433857,-530.28086292,0.00029679,2]
[310724399,1704677433867,-1152.1619165,0.00029679,2]
[310724400,1704677433890,-345.85363924,0.00029679,2]
[310724401,1704677433919,-455.94522447,0.00029679,2]
[310724402,1704677433931,-257.91251632,0.00029679,2]
[310724403,1704677433941,-21692.10606019,0.0002968,2]
[310724429,1704677438023,-8895.65150137,0.0002968,2]
[310724430,1704677438072,-2047.13850515,0.0002968,2]
[310724431,1704677438197,-1426.37283329,0.0002968,2]
[310724432,1704677438206,-7684.36894125,0.00029698,2]
[310724433,1704677438215,-8372.8391,0.00029699,2]
[310724434,1704677438225,-3166.6113,0.00029699,2]
[310724435,1704677438235,-1000.0,0.00029699,2]
[310724436,1704677438245,-500.0,0.00029699,2]
[310724437,1704677438254,-3000.0,0.000297,2]
[310724438,1704677438263,-500.0,0.00029758,2]
[310724439,1704677438272,-200.0,0.00029758,3]
[310724440,1704677438282,-800.0,0.00029758,5]
[310724441,1704677438291,-167.61819392,0.00029761,2]
[310724442,1704677438300,-363.3,0.00029782,2]
[310724443,1704677438310,-150.1,0.00029797,6]
[310724444,1704677438319,-657.315,0.00029797,2]
[310724445,1704677438328,-526.82413509,0.00029797,2]
[310724446,1704677438337,-2013.92192143,0.00029797,2]
[310724447,1704677438347,-155.0,0.00029797,2]
[310724448,1704677438356,-1480.64028236,0.00029797,2]
[310724449,1704677438365,-239.61078597,0.00029797,2]
[310724450,1704677438374,-382.07978002,0.00029797,2]
[310724451,1704677438385,-255.72106889,0.00029797,2]
[310724452,1704677438394,-201.39591919,0.00029797,2]
[310724453,1704677438403,-299.85361044,0.00029797,2]
[310724454,1704677438413,-1499.16635546,0.00029798,2]
[310724455,1704677438422,-195.49419204,0.000298,2]
[310724456,1704677438431,-1000.0,0.000298,2]
[310724457,1704677438440,-7056.41712366,0.00029809,2]
[310724458,1704677438452,-627.95181755,0.00029809,2]
[310724459,1704677438461,-163.63,0.00029811,2]
[310724460,1704677438471,-381.81444272,0.00029847,2]
[310724461,1704677438480,-165.41,0.0002988,2]
[310724462,1704677438489,-32.99151876,0.00029887,2]
[310724463,1704677438501,-145.86579966,0.00029887,2]
[310724464,1704677438511,-5337.51587534,0.000299,2]
[310724465,1704677438522,-304.715023,0.000299,2]
[310724466,1704677438532,-1964.456485,0.000299,2]
[310724467,1704677438542,-300.0,0.000299,2]
[310724468,1704677438551,-543.65532177,0.000299,4]
[310724469,1704677438561,-655.2093812,0.000299,2]
[310724470,1704677438570,-394.97636814,0.000299,2]
[310724471,1704677438579,-691.34266353,0.00029919,2]
[310724472,1704677438591,-2732.46177117,0.00029919,2]
[310724473,1704677438622,-281.55,0.00029919,2]
[310724474,1704677438635,-583.26211302,0.00029919,2]
[310724475,1704677438647,-606.56537838,0.00029919,2]
[310724476,1704677438673,-626.52455105,0.00029919,2]
[310724477,1704677438867,-1935.14523817,0.00029919,2]
[310724478,1704677438945,-227.51722589,0.00029919,2]
[310724479,1704677438955,-167.61819392,0.00029942,2]
[310724480,1704677438964,-220.877076,0.00029997,2]
[310724481,1704677438999,-2342.77112359,0.00029997,2]
[310724739,1704677441207,-614.70870623,0.00029997,2]
[310724740,1704677441247,-417.51175203,0.00029997,2]
[310724741,1704677441256,-196.25726962,0.00029997,2]
[310724742,1704677441266,-741.63089335,0.00029997,2]
[310724743,1704677441305,-537.795,0.00029997,2]
[310724744,1704677441316,-2628.43684358,0.00029997,2]
[310724745,1704677441325,-1596.2783782,0.00029997,2]
[310724746,1704677441342,-356.99633322,0.00029997,2]
[310724747,1704677441355,-675.21345931,0.00029997,2]
[310724748,1704677441366,-8874.15202689,0.00029997,2]
[310724749,1704677441375,-355.43072761,0.00029997,2]
[310724750,1704677441385,-484.23242473,0.00029997,2]
[310724751,1704677441394,-230.53959902,0.00029997,2]
[310724752,1704677441404,-155.27713894,0.00029997,2]
[310724753,1704677441413,-1098.99998562,0.00029997,2]
[310724754,1704677441422,-2424.50123127,0.00029997,2]
[310724755,1704677441431,-464.3991946,0.00029998,2]
[310724756,1704677441441,-7235.86188413,0.00029998,2]
[310724757,1704677441451,-259.11941183,0.00029998,2]
[310724758,1704677441460,-718.5,0.00029999,2]
[310724759,1704677441469,-50000.0,0.0003,2]
[310724760,1704677441478,-191.01126899,0.0003,6]
[310724761,1704677441489,-1802.90872975,0.0003,4]
[310724762,1704677441498,-865.82786024,0.0003,2]
[310724763,1704677441508,-155.0,0.0003,2]
[310724764,1704677441518,-889.65028273,0.0003,4]
[310724765,1704677441527,-8806.28564995,0.0003,4]
[310724766,1704677441535,-6209.87054221,0.0003,4]
[310724767,1704677441546,-571.77796,0.0003,4]
[310724768,1704677441581,-530.84314582,0.0003,4]
[310724769,1704677441593,-639.14654176,0.0003,4]
[310724770,1704677441604,-502.64085598,0.0003,4]
[310724771,1704677441615,-816.22100029,0.0003,4]
[310724784,1704677443098,-3574.41483259,0.0003,4]
[310724787,1704677443110,-6842.661,0.0003,4]
[310724790,1704677443134,-13247.12897063,0.0003,4]
[310724801,1704677443238,-972.4045936,0.0003,4]
[310724821,1704677443991,-13125.00000001,0.0003,4]
[310724822,1704677444002,-1022.65060933,0.0003,4]
[310724824,1704677444017,-278.02097649,0.0003,4]
[310724825,1704677444028,-543.33974753,0.0003,4]
[310724837,1704677444157,-5805.64466566,0.0003,4]
[310724839,1704677444167,-1745.65254615,0.0003,2]
[310724841,1704677444178,-4203.86777353,0.0003,2]
[310724842,1704677444188,-162.12,0.0003,2]
[310724844,1704677444196,-500.0,0.0003,5]
[310724846,1704677444206,-5000.0,0.0003,2]
[310724848,1704677444215,-12262.29609774,0.0003,2]
[310724850,1704677444224,-600.0,0.0003,31]
[310724852,1704677444233,-5000.0,0.0003,2]
[310724854,1704677444242,-664.16641008,0.0003,4]
[310724856,1704677444251,-330.77,0.0003,2]
[310724858,1704677444260,-5507.09680181,0.0003,2]
[310724860,1704677444269,-151.0,0.0003,7]